fUSD/lending_fUSD_20240213
["ID","MTS","AMOUNT","RATE_DAILY","PERIOD"]
[313947370,1707845270021,217.70200193,0.0002298,2]
[313947371,1707845277986,2000.0,0.00022977,2]
[313947372,1707845282399,2705.0,0.00022977,2]
[313947375,1707845297375,1398.98385662,0.00022999,2]
[313947376,1707845299099,1000.0,0.00022927,2]
[313947377,1707845303203,2757.57,0.00022927,2]
[313947378,1707845306340,158.36266505,0.000229,2]
[313947379,1707845308993,2374.20998277,0.000229,2]
[313947380,1707845309172,16858.09259618,0.00022999,2]
[313947381,1707845310192,166.68564811,0.000229,2]
[313947382,1707845311467,155.56339283,0.000229,2]
[313947383,1707845311702,155.79227291,0.000229,2]
[313947384,1707845314309,809.90426207,0.000229,2]
[313947385,1707845315763,384.14020334,0.000229,2]
[313947386,1707845331643,701.89192313,0.00022999,2]
[313947387,1707845346168,177.27,0.00022005,2]
[313947388,1707845346778,178.83592973,0.00022999,2]
[313947389,1707845347483,177.27,0.00022553,2]
[313947390,1707845348778,16244.13526644,0.00022993,2]
[313947391,1707845348910,1312.73104197,0.00022999,5]
[313947392,1707845363729,1089.50713028,0.00022906,2]
[313947393,1707845368586,5947.42028674,0.00022906,2]
[313947394,1707845380343,958.74696853,0.00022999,2]
[313947395,1707845381348,414.36901055,0.00022999,2]
[313947396,1707845382189,1957.77976009,0.00022999,2]
[313947397,1707845383053,462340.0,0.00022775,2]
[313947398,1707845384073,5593.05815116,0.00022999,2]
[313947399,1707845387280,16858.09259618,0.00022999,2]
[313947400,1707845390689,155.0,0.00022724,2]
[313947401,1707845392669,2158.44442105,0.00022999,2]
[313947402,1707845395170,231.48716381,0.00022999,2]
[313947403,1707845395198,161.47798287,0.00022998,2]
[313947404,1707845397496,700.0,0.000227,8]
[313947405,1707845397594,497.50083264,0.00022999,2]
[313947406,1707845398409,266.95882545,0.00022999,2]
[313947407,1707845398876,155.0,0.00022999,2]
[313947408,1707845398917,2319.63023705,0.00022999,2]
[313947409,1707845399409,191.95382053,0.00022999,2]
[313947410,1707845399603,1400.0,0.000228,8]
[313947411,1707845399733,808.72,0.00021043,2]
[313947412,1707845400040,214.1053981,0.00022977,2]
[313947413,1707845400441,617.07274644,0.00022999,2]
[313947414,1707845400537,302.97404261,0.00022999,2]
[313947415,1707845400856,155.0,0.00022999,2]
[313947416,1707845401695,2100.0,0.000229,8]
[313947417,1707845401742,155.0,0.00022999,2]
[313947418,1707845402160,1477.61618129,0.00022999,2]
[313947419,1707845402512,43238.68166503,0.00022999,2]
[313947420,1707845402571,409.52376211,0.00022999,2]
[313947421,1707845403449,345.36168153,0.00022999,2]
[313947422,1707845403499,1233.25817897,0.00022999,2]
[313947423,1707845403529,150.0,0.00022999,2]
[313947424,1707845403983,5059.0803306,0.00022999,2]
[313947425,1707845404101,1543.88405414,0.00022999,2]
[313947426,1707845406944,1047.40942975,0.00022999,2]
[313947427,1707845408162,4595.77509345,0.00022999,2]
[313947428,1707845409158,531.91899672,0.00022999,2]
[313947429,1707845411170,155.0,0.00022999,2]
[313947430,1707845411439,770.82083151,0.00022999,2]
[313947431,1707845411519,212.92069217,0.00022999,2]
[313947432,1707845412406,248.08700062,0.00022999,2]
[313947433,1707845412579,155.0,0.00022999,2]
[313947434,1707845413589,496.56406582,0.0002277,2]
[313947435,1707845415771,221.17327819,0.00022999,2]
[313947436,1707845418066,545.98654233,0.00022999,2]
[313947437,1707845418525,5547.22996271,0.00022999,2]
[313947438,1707845423231,1051.3255843,0.00022999,2]
[313947439,1707845423547,526.72010245,0.00022999,2]
[313947440,1707845425705,322.31836732,0.00022999,2]
[313947441,1707845429318,178.83592973,0.00022999,2]
[313947442,1707845430534,860.50898128,0.00022995,2]
[313947443,1707845431122,155.0,0.00022999,2]
[313947472,1707845431675,-389.18705819,0.00023,2]
[313947474,1707845431685,-5474.35621938,0.00023,2]
[313947476,1707845431695,-7827.64554469,0.00023,2]
[313947478,1707845431953,-2298.93424801,0.00023,2]
[313947479,1707845431963,-407.32052341,0.00023,2]
[313947480,1707845431974,-366.07815505,0.00023,2]
[313947482,1707845431983,-526.65608122,0.00023,2]
[313947484,1707845431993,-414.2756901,0.00023,2]
[313947486,1707845432002,-4264.93332037,0.00023,2]
[313947488,1707845432012,-204.45248526,0.00023,2]
[313947490,1707845432021,-336.36374591,0.00023,2]
[313947492,1707845432031,-155.0,0.00023,2]
[313947494,1707845432041,-200.4169865,0.00023,2]
[313947496,1707845432051,-285.41255925,0.00023,2]
[313947498,1707845432060,-1956.03166547,0.00023,2]
[313947500,1707845432070,-155.0,0.00023,2]
[313947502,1707845432079,-1207.4376444,0.00023,2]
[313947504,1707845432089,-1886.55364145,0.00023,2]
[313947506,1707845432099,-699.6243442,0.00023,2]
[313947508,1707845432108,-594.04011695,0.00023,2]
[313947510,1707845432122,-230.80499396,0.00023,2]
[313947512,1707845432134,-155.0,0.00023,2]
[313947514,1707845432144,-264.84880477,0.00023,2]
[313947516,1707845432153,-190.89283493,0.00023,2]
[313947518,1707845432163,-191.51739091,0.00023,2]
[313947520,1707845432174,-5047.86704743,0.00023,2]
[313947522,1707845432184,-32206.24808017,0.00023,2]
[313947524,1707845432194,-431.67579798,0.00023,2]
[313947526,1707845432204,-407.39418204,0.00023,2]
[313947528,1707845432213,-157.68028817,0.00023,2]
[313947530,1707845432222,-168.03720604,0.00023,2]
[313947532,1707845432231,-279.9373628,0.00023,2]
[313947534,1707845432241,-282.68327647,0.00023,2]
[313947536,1707845432250,-2237.07003635,0.00023,2]
[313947538,1707845432259,-726.59911898,0.00023,2]
[313947540,1707845432269,-1370.8872066,0.00023,2]
[313947542,1707845432279,-278.45003454,0.00023,2]
[313947544,1707845432289,-531.68879568,0.00023,2]
[313947546,1707845432298,-250.16518342,0.00023,2]
[313947548,1707845432308,-770.00695276,0.00023,2]
[313947550,1707845432317,-158.25483065,0.00023,2]
[313947552,1707845432327,-346.82973829,0.00023,2]
[313947554,1707845432337,-1000.0,0.00023001,2]
[313947556,1707845432346,-763.98498224,0.00023001,2]
[313947558,1707845432356,-9664.79536191,0.00023001,2]
[313947560,1707845432366,-200.0,0.00023002,2]
[313947562,1707845432381,-33533.40049556,0.00023002,2]
[313947564,1707845432393,-687.08930327,0.00023003,2]
[313947566,1707845432403,-973.07605628,0.00023003,2]
[313947568,1707845432414,-224.06504835,0.00023003,2]
[313947570,1707845432424,-5355.45944021,0.00023003,2]
[313947572,1707845432434,-491.37111517,0.00023004,2]
[313947574,1707845432444,-1260.35637166,0.00023004,2]
[313947577,1707845432455,-4645.77348202,0.00023004,2]
[313947578,1707845432465,-908.1571207,0.00023004,2]
[313947581,1707845432474,-251.74227049,0.00023004,2]
[313947583,1707845432486,-287.06345824,0.00023004,2]
[313947584,1707845432496,-174.62984888,0.00023004,2]
[313947585,1707845432506,-344.88681245,0.00023004,2]
[313947586,1707845432515,-158.74744571,0.00023004,2]
[313947587,1707845432525,-932.70409746,0.00023004,2]
[313947588,1707845432535,-285.00505841,0.00023004,2]
[313947589,1707845432545,-299.18035106,0.00023004,2]
[313947590,1707845432555,-739393.52070831,0.00023005,2]
[313947591,1707845432617,-210.65932817,0.00023,2]
[313947593,1707845432629,-532.22874241,0.00023005,2]
[313947596,1707845432642,-485.487036,0.00023005,2]
[313947603,1707845432700,204.19468112,0.00022999,2]
[313947606,1707845432719,-276.64332881,0.00023005,2]
[313947614,1707845435376,248.4680893,0.00022999,2]
[313947615,1707845436621,3347.99076956,0.00022998,2]
[313947628,1707845437711,-377.52035265,0.00023,2]
[313947629,1707845437721,-374.65194383,0.00023,2]
[313947630,1707845437730,-291.75633346,0.00023,2]
[313947631,1707845437740,-155.0,0.00023,2]
[313947632,1707845437749,-358.39820342,0.00023,2]
[313947633,1707845437759,-22513.17193662,0.00023,2]
[313947634,1707845437773,-4729.80918066,0.00023,2]
[313947635,1707845437983,-6053.5,0.00023,2]
[313947636,1707845439152,-16338.43582694,0.00023,2]
[313947637,1707845439162,-1425.24483692,0.00023004,2]
[313947638,1707845439216,-513.146,0.00023004,2]
[313947639,1707845439228,-4489.6398706,0.00023004,2]
[313947640,1707845439238,-200.11647614,0.00023004,2]
[313947641,1707845439248,-155.12760888,0.00023005,2]
[313947642,1707845439260,-6492.39494272,0.00023005,2]
[313947643,1707845439273,-2377.61778837,0.00023005,2]
[313947644,1707845439285,-3693.94473968,0.00023005,2]
[313947645,1707845439298,-5234.0859659,0.00023005,2]
[313947646,1707845439311,-1050.55056104,0.00023005,2]
[313947838,1707845441125,-6933.43911118,0.00023004,2]
[313947839,1707845441138,-2746.56088882,0.00023005,2]
[313947842,1707845441181,-14567.33994,0.00023005,2]
[313947844,1707845441194,-2420.4,0.00023005,2]
[313947846,1707845441206,-1942.37721319,0.00023005,2]
[313947849,1707845441220,-273.685,0.00023005,2]
[313947851,1707845441233,-2608.606,0.00023005,2]
[313947855,1707845441260,-557.88836708,0.00023003,2]
[313947857,1707845441274,-493.43721722,0.00023003,2]
[313947859,1707845441285,-553.29245858,0.00023005,2]
[313947899,1707845441654,4724.16640004,0.00022999,2]
[313948019,1707845442681,2917.84801614,0.00022999,2]
[313948024,1707845442701,-485.39886,0.00023003,2]
[313948031,1707845442729,-4.82171492,0.00023003,2]
[313948034,1707845442740,-2535.50830836,0.00023005,2]
[313948038,1707845442757,-3007.5963661,0.00023005,2]
[313948040,1707845442769,-20977.32399979,0.00023005,2]
[313948044,1707845442790,-1297.78890533,0.00023005,2]
[313948046,1707845442802,-3252.70944745,0.00023005,2]
[313948051,1707845442837,-1227.53602096,0.00023005,2]
[313948053,1707845442850,-14529.0,0.00023005,2]
[313948056,1707845442863,-9447.94800297,0.00023005,2]
[313948063,1707845442919,-2041.68086359,0.00023005,2]
[313948069,1707845442963,-219500.46176737,0.00023005,2]
[313948071,1707845442973,-155.0,0.00023006,2]
[313948073,1707845442983,-403.94532009,0.00023006,2]
[313948075,1707845442994,-155.0,0.00023006,2]
[313948077,1707845443005,-311.43930297,0.00023006,2]
[313948080,1707845443016,-1738.79464431,0.00023006,2]
[313948082,1707845443026,-214.70806668,0.00023006,2]
[313948084,1707845443036,-261.02653935,0.00023006,2]
[313948086,1707845443047,-155.0,0.00023006,2]
[313948088,1707845443058,-2605.62369976,0.00023006,2]
[313948090,1707845443068,-155.0,0.00023006,2]
[313948093,1707845443079,-1823.51463068,0.00023006,2]
[313948095,1707845443090,-495537.81904403,0.00023006,2]
[313948097,1707845443101,-157.07924265,0.00023006,2]
[313948099,1707845443112,-700.02574658,0.00023008,2]
[313948101,1707845443123,-286.32418235,0.00023008,2]
[313948104,1707845443134,-2218.5,0.00023008,2]
[313948106,1707845443146,-7479.47,0.00023008,2]
[313948108,1707845443157,-2406.86,0.0002301,2]
[313948110,1707845443168,-499.99,0.0002301,2]
[313948112,1707845443178,-8566.1,0.0002301,2]
[313948115,1707845443188,-156.10743605,0.0002301,2]
[313948117,1707845443197,-436.36606783,0.0002301,2]
[313948119,1707845443207,-544.37005797,0.0002301,2]
[313948121,1707845443216,-500.0,0.0002301,2]
[313948123,1707845443225,-177.38638519,0.0002301,2]
[313948126,1707845443235,-188.09896166,0.0002301,2]
[313948129,1707845443245,-203.90780225,0.0002301,2]
[313948131,1707845443255,-315.65650681,0.0002301,2]
[313948133,1707845443266,-421.30512584,0.0002301,2]
[313948135,1707845443277,-774.45028647,0.0002301,2]
[313948137,1707845443288,-1612.65911217,0.0002301,2]
[313948138,1707845443298,-339.76589468,0.0002301,2]
[313948139,1707845443308,-150.99,0.0002301,2]
[313948140,1707845443319,-1532.6971888,0.0002301,2]
[313948141,1707845443333,-744.8528112,0.0002301,2]
[313948142,1707845443343,-1000.0,0.00023013,2]
[313948143,1707845443354,-7932.18,0.00023014,2]
[313948145,1707845443365,-500.0,0.00023014,2]
[313948147,1707845443375,-2000.0,0.00023014,2]
[313948149,1707845443386,-200.0,0.00023014,2]
[313948151,1707845443397,-547.33905574,0.00023015,2]
[313948153,1707845443407,-848.11,0.00023015,2]
[313948155,1707845443417,-200.0,0.00023035,2]
[313948157,1707845443427,-1042.92454175,0.00023061,2]
[313948159,1707845443437,-250.79,0.00023061,2]
[313948162,1707845443449,-200.0,0.00023062,2]
[313948164,1707845443460,-250.0,0.00023095,2]
[313948166,1707845443470,-387.58990375,0.00023099,2]
[313948168,1707845443480,-177.27,0.00023101,2]
[313948170,1707845443490,-250.79,0.00023124,2]
[313948172,1707845443500,-250.79,0.00023187,2]
[313948174,1707845443510,-387.58990375,0.00023193,2]
[313948176,1707845443520,-250.79,0.0002325,2]
[313948179,1707845443530,-387.58990375,0.00023287,2]
[313948181,1707845443540,-808.72,0.00023307,2]
[313948183,1707845443550,-250.79,0.00023313,2]
[313948185,1707845443560,-207.0,0.00023365,2]
[313948187,1707845443570,-212.99998,0.00023365,2]
[313948189,1707845443580,-250.79,0.00023376,2]
[313948191,1707845443590,-387.58990375,0.00023382,2]
[313948193,1707845443600,-250.79,0.00023439,2]
[313948195,1707845443610,-387.58990375,0.00023476,2]
[313948198,1707845443619,-250.79,0.00023503,2]
[313948200,1707845443630,-710.92,0.00023555,2]
[313948202,1707845443641,-719.02,0.00023558,2]
[313948204,1707845443651,-722.95,0.0002356,2]
[313948206,1707845443661,-3143.38051339,0.00023562,2]
[313948208,1707845443671,-728.76,0.00023562,2]
[313948210,1707845443681,-250.79,0.00023566,2]
[313948212,1707845443691,-387.58990375,0.0002357,2]
[313948214,1707845443700,-250.79,0.00023629,2]
[313948216,1707845443711,-177.27,0.00023649,2]
[313948219,1707845443721,-387.58990375,0.00023665,2]
[313948221,1707845443731,-165.37,0.00023684,2]
[313948223,1707845443741,-250.79,0.00023692,2]
[313948225,1707845443751,-250.79,0.00023755,2]
[313948227,1707845443761,-387.58990375,0.00023759,2]
[313948229,1707845443771,-2000.0,0.00023802,2]
[313948231,1707845443781,-200.0,0.00023802,2]
[313948233,1707845443791,-715.72,0.00023811,2]
[313948235,1707845443801,-717.18,0.00023813,2]
[313948237,1707845443810,-422.19790322,0.00023815,2]
[313948240,1707845443820,-250.79,0.00023818,2]
[313948242,1707845443831,-387.58990375,0.00023853,2]
[313948244,1707845443841,-250.79,0.00023881,2]
[313948246,1707845443851,-865.64,0.00023908,2]
[313948248,1707845443860,-250.79,0.00023944,2]
[313948250,1707845443870,-387.58990375,0.00023947,2]
[313948252,1707845443880,-518.01679133,0.00024,2]
[313948254,1707845443889,-202.22442285,0.00024,2]
[313948256,1707845443899,-250.79,0.00024007,2]
[313948259,1707845443913,-2000.0,0.0002404,2]
[313948261,1707845443923,-200.0,0.0002404,2]
[313948263,1707845443933,-387.58990375,0.00024042,2]
[313948265,1707845443943,-2488.89915065,0.00024058,2]
[313948267,1707845443953,-250.79,0.0002407,2]
[313948269,1707845443963,-250.79,0.00024133,2]
[313948271,1707845443973,-387.58990375,0.00024136,2]
[313948274,1707845443983,-1089.50713025,0.00024155,2]
[313948276,1707845443992,-250.79,0.00024196,2]
[313948278,1707845444002,-177.27,0.00024197,2]
[313948280,1707845444012,-387.58990375,0.0002423,2]
[313948282,1707845444021,-200.0,0.0002428,2]
[313948284,1707845444031,-387.58990375,0.00024325,2]
[313948286,1707845444041,-2334.84,0.00024384,2]
[313948288,1707845444051,-542.6,0.00024384,2]
[313948290,1707845444061,-387.58990375,0.00024419,2]
[313948292,1707845444071,-183.12926147,0.00024454,2]
[313948294,1707845444080,-177.29,0.00024461,2]
[313948296,1707845444090,-165.37,0.00024466,2]
[313948298,1707845444100,-192.0461092,0.000245,2]
[313948300,1707845444109,-387.58990375,0.00024513,2]
[313948302,1707845444119,-282.79622897,0.00024554,2]
[313948304,1707845444128,-387.58990375,0.00024608,2]
[313948307,1707845444140,-2406.86,0.00024654,2]
[313948309,1707845444150,-250.0,0.00024658,2]
[313948311,1707845444160,-200.31907233,0.00024702,2]
[313948313,1707845444170,-387.58990375,0.00024702,2]
[313948315,1707845444179,-860.50898128,0.00024714,2]
[313948317,1707845444189,-13245.64367266,0.00024724,2]
[313948319,1707845444198,-177.27,0.00024745,2]
[313948321,1707845444208,-2365.77682058,0.00024799,2]
[313948323,1707845444218,-1849.43228961,0.000248,2]
[313948325,1707845444228,-345.51671187,0.000248,2]
[313948328,1707845444238,-2635.96768724,0.00024801,2]
[313948330,1707845444247,-196.77318394,0.00024801,2]
[313948332,1707845444257,-299.79419163,0.00024802,2]
[313948334,1707845444267,-528.0715305,0.00024803,2]
[313948336,1707845444277,-6474.95492372,0.00024803,2]
[313948338,1707845444287,-19102.0096647,0.00024803,2]
[313948340,1707845444296,-1028.94815957,0.00024805,2]
[313948342,1707845444306,-255.82828549,0.00025,2]
[313948344,1707845444316,-324.67834053,0.00025,2]
[313948346,1707845444326,-1592.37015014,0.00025,2]
[313948348,1707845444336,-1910.1668503,0.00025,2]
[313948350,1707845444345,-350.0,0.00025,3]
[313948353,1707845444355,-305.15013947,0.00025,2]
[313948355,1707845444366,-946.49306219,0.00025,2]
[313948357,1707845444376,-160.65507838,0.00025,2]
[313948359,1707845444388,-697.82424559,0.00025,2]
[313948361,1707845444399,-168.22521568,0.00025,2]
[313948363,1707845444409,-938.54769729,0.00025,2]
[313948365,1707845444419,-18715.96260369,0.00025,4]
[313948367,1707845444428,-865.64,0.00025046,2]
[313948369,1707845444438,-211.0,0.00025059,2]
[313948371,1707845444448,-151.0,0.00025059,2]
[313948373,1707845444458,-184.17710329,0.00025196,2]
[313948375,1707845444469,-2365.77682053,0.00025239,2]
[313948377,1707845444479,-165.37,0.00025248,2]
[313948379,1707845444488,-344.72886258,0.00025293,2]
[313948381,1707845444497,-152.19,0.00025296,2]
[313948383,1707845444507,-2000.0,0.000253,2]
[313948385,1707845444518,-200.0,0.000253,2]
[313948387,1707845444527,-207.0,0.00025401,5]
[313948390,1707845444537,-1089.50713025,0.00025403,2]
[313948392,1707845444547,-2000.0,0.00025553,2]
[313948394,1707845444557,-200.0,0.00025553,2]
[313948396,1707845444567,-808.72,0.00025571,2]
[313948398,1707845444576,-5947.42028673,0.00025734,2]
[313948400,1707845444586,-1000.0,0.00025793,2]
[313948402,1707845444596,-194.23444843,0.00025889,2]
[313948404,1707845444606,-296.11088142,0.00025889,2]
[313948406,1707845444616,-736.40906938,0.00026,2]
[313948408,1707845444625,-154.82959698,0.00026,2]
[313948410,1707845444635,-165.37,0.00026029,2]
[313948413,1707845444646,-865.64,0.00026185,2]
[313948414,1707845444656,-817.43473583,0.0002619,2]
[313948417,1707845444666,-152.19,0.00026191,2]
[313948419,1707845444675,-2406.86,0.00026298,2]
[313948421,1707845444685,-13245.64367266,0.00026541,2]
[313948423,1707845444695,-500.0,0.000266,2]
[313948425,1707845444705,-258.56,0.000266,2]
[313948427,1707845444715,-1089.50713025,0.00026652,2]
[313948429,1707845444724,-150.0,0.000267,10]
[313948431,1707845444733,-258.56,0.00026737,2]
[313948433,1707845444743,-165.37,0.00026811,2]
[313948435,1707845444752,-258.56,0.00026874,2]
[313948437,1707845444762,-400.0,0.00027,3]
[313948439,1707845444772,-756.92162255,0.00027,2]
[313948442,1707845444782,-258.56,0.00027011,2]
[313948444,1707845444792,-152.19,0.00027085,2]
[313948446,1707845444802,-257.16125131,0.00027087,2]
[313948448,1707845444812,-456.28666471,0.00027087,2]
[313948450,1707845444822,-500.0,0.00027148,2]
[313948452,1707845444832,-258.56,0.00027148,2]
[313948454,1707845444842,-155.0,0.00027182,2]
[313948456,1707845444852,-2395.69999998,0.00027184,2]
[313948458,1707845444862,-417.88852061,0.00027184,2]
[313948460,1707845444872,-1254.00428859,0.00027184,2]
[313948462,1707845444882,-526.74284305,0.00027184,2]
[313948465,1707845444894,-215.95378239,0.00027184,2]
[313948467,1707845444905,-344.21063477,0.00027184,2]
[313948469,1707845444914,-156.56440995,0.00027184,2]
[313948471,1707845444924,-177.3874531,0.00027184,2]
[313948473,1707845444933,-165.16010682,0.00027184,2]
[313948475,1707845444942,-503.3410751,0.00027184,2]
[313948477,1707845444952,-192.82758481,0.00027185,2]
[313948479,1707845444962,-267.08510665,0.00027185,2]
[313948481,1707845444972,-1044.0807573,0.00027186,2]
[313948483,1707845444982,-196.71456252,0.00027186,2]
[313948485,1707845444992,-382.34785834,0.00027186,2]
[313948488,1707845445001,-163.68052239,0.00027187,2]
[313948490,1707845445010,-155.0,0.00027187,2]
[313948492,1707845445020,-155.0,0.00027187,2]
[313948494,1707845445029,-155.0,0.00027187,2]
[313948496,1707845445040,-162.48956614,0.00027188,2]
[313948498,1707845445050,-155.0,0.00027188,2]
[313948499,1707845445059,-155.0,0.00027188,2]
[313948500,1707845445069,-155.44686257,0.00027188,2]
[313948501,1707845445079,-156.72371405,0.00027188,2]
[313948502,1707845445089,-155.64319255,0.00027188,2]
[313948503,1707845445099,-251.32016081,0.00027188,2]
[313948504,1707845445109,-258.56,0.00027285,2]
[313948505,1707845445119,-865.64,0.00027323,2]
[313948506,1707845445128,-155.0,0.00027397,2]
[313948508,1707845445138,-301.24162303,0.00027397,5]
[313948510,1707845445150,-3772.96,0.00027397,2]
[313948512,1707845445160,-1195.08125374,0.000274,2]
[313948514,1707845445170,-258.56,0.00027422,2]
[313948516,1707845445180,-207.0,0.00027436,8]
[313948518,1707845445190,-204.94330117,0.00027459,5]
[313948520,1707845445200,-166.64983942,0.00027493,2]
[313948521,1707845445209,-3059.32930084,0.00027493,2]
[313948522,1707845445219,-1064.79723799,0.00027493,2]
[313948523,1707845445229,-15092.22049421,0.00027513,4]
[313948525,1707845445239,-3772.96,0.00027556,2]
[313948527,1707845445248,-408.82,0.00027559,2]
[313948529,1707845445259,-2365.77682053,0.00027571,2]
[313948530,1707845445269,-165.37,0.00027593,2]
[313948531,1707845445281,-169.38413044,0.00027614,2]
[313948532,1707845445292,-11669.0,0.00027616,4]
[313948533,1707845445303,-500.0,0.00027696,2]
[313948539,1707845445622,-3772.96,0.00027714,2]
[313948540,1707845445640,-250.0,0.000278,2]
[313948541,1707845445657,-150.0,0.000278,2]
[313948542,1707845445668,-150.0,0.000278,2]
[313948543,1707845445677,-150.0,0.000278,2]
[313948544,1707845445686,-808.72,0.00027834,2]
[313948545,1707845445695,-3772.96,0.00027872,2]
[313948546,1707845445705,-1600.0,0.000279,10]
[313948547,1707845445715,-1089.50713025,0.000279,2]
[313948548,1707845445724,-2800.0,0.000279,10]
[313948549,1707845445733,-2406.86,0.00027942,2]
[313948550,1707845445742,-152.19,0.0002798,2]
[313948551,1707845445752,-253820.14565341,0.00028,3]
[313948552,1707845445768,-972.04,0.00028,3]
[313948553,1707845445784,-1287.68895368,0.00028,3]
[313948554,1707845445795,-7793.40418526,0.00028,3]
[313948555,1707845445807,-15999.60526583,0.00028,3]
[313948556,1707845445831,-342.7239389,0.00028,3]
[313948557,1707845445922,290.58241428,0.00022999,2]
[313948558,1707845446071,155.92143527,0.00022888,2]
[313948559,1707845446126,-251.35866507,0.00023002,2]
[313948560,1707845446136,-241.76058581,0.00023002,2]
[313948561,1707845446149,-122.75032018,0.00023002,2]
[313948562,1707845446158,-432.23447698,0.00023003,2]
[313948563,1707845446168,-284.31905777,0.00023004,2]
[313948564,1707845446177,-1209.8078839,0.00023004,2]
[313948565,1707845446186,-1957.34969805,0.00023004,2]
[313948566,1707845446196,-216.42781233,0.00023004,2]
[313948567,1707845446206,-242.42819865,0.00023004,2]
[313948568,1707845446215,-10346.40822769,0.00028,3]
[313948570,1707845468626,-3697.69464102,0.00023,4]
[313948571,1707845468647,-161.39054706,0.00023,2]
[313948572,1707845468667,-386.48141651,0.00023001,2]
[313948573,1707845468687,-155.0,0.00023002,2]
[313948574,1707845468707,-1361.76429773,0.00023003,2]
[313948575,1707845468727,-1318.40482753,0.00023003,2]
[313948576,1707845468747,-1225.79714716,0.00023003,2]
[313948577,1707845468767,-393.97141598,0.00023003,2]
[313948578,1707845468787,-1712.94560503,0.00023003,2]
[313948579,1707845495237,1000.0,0.00023,2]
[313948586,1707845823900,-155.0,0.00023989,2]
[313948587,1707845823920,-159.72247724,0.0002399,2]
[313948588,1707845823940,-155.0,0.0002399,2]
[313948589,1707845823960,-364.51090599,0.00023991,2]
[313948590,1707845823980,-7165.76661677,0.00023993,2]
[313948610,1707846412245,1001.77650296,0.00023005,5]
[313948611,1707846438135,732.48,0.00021763,2]
[313948612,1707846445369,600.0,0.000247,9]
[313948613,1707846447495,1200.0,0.000248,9]
[313948614,1707846449635,1800.0,0.000249,9]
[313948620,1707846549259,15000.0,0.0002,3]
[313948621,1707846567222,150.0,0.00023964,10]
[313948625,1707846631767,-231.59691735,0.00023208,2]
[313948626,1707846631777,-364.51090599,0.00023258,2]
[313948627,1707846631787,-155.0,0.00023259,2]
[313948628,1707846631798,-231.48716381,0.00023259,2]
[313948629,1707846631809,-219.21021995,0.0002326,2]
[313948630,1707846631819,-3347.99076956,0.0002326,2]
[313948631,1707846631828,-173.46,0.00023261,2]
[313948632,1707846631839,-250.0,0.00023261,2]
[313948633,1707846631848,-200.0,0.00023281,2]
[313948634,1707846631857,-150.0,0.00023281,2]
[313948635,1707846631866,-5474.35621938,0.00023307,2]
[313948636,1707846631875,-1121.64,0.00023308,2]
[313948637,1707846631884,-828.14,0.00023325,2]
[313948638,1707846631893,-150.0,0.00023348,2]
[313948639,1707846631902,-3891.20855763,0.0002335,2]
[313948640,1707846631912,-465.98,0.00023379,2]
[313948641,1707846631921,-416.38,0.00023379,2]
[313948642,1707846631931,-231.59691718,0.000234,2]
[313948643,1707846631940,-161.66,0.00023405,2]
[313948644,1707846631950,-727.6,0.00023842,2]
[313948645,1707846631959,-726.19,0.00023846,2]
[313948646,1707846631968,-711.27,0.00023847,2]
[313948647,1707846631978,-5898.77,0.00023848,2]
[313948648,1707846631987,-715.61,0.00023848,2]
[313948649,1707846631997,-2982.6861,0.00023848,2]
[313948650,1707846632005,-2756.1,0.0002385,2]
[313948651,1707846632015,-499.99,0.0002385,2]
[313948652,1707846632024,-431.43,0.00023858,2]
[313948653,1707846632034,-390.9,0.00023877,2]
[313948654,1707846632043,-431.43,0.00023923,2]